Cogmind - Beta 16 @@@ ROGUE MODE // 2025.10.22 @ 19:30:58 Player: woegarden Result: Destroyed by G-34 Mercenary with Small Laser Performance ------------- Evolutions (1) 500 Regions Visited (4) 800 Robots Destroyed (23) 115 Value Destroyed (345) 345 Prototype IDs (0) 0 Alien Tech Used (0) 0 Bonus (700) 700 TOTAL SCORE: 2460 Bonus ------- Entered Garrisons 200 Used RIF Installer 500 Cogmind --------- Core Integrity 0/400 Matter 300/300 Energy 100/100 System Corruption 6% Temperature Cool (15) Movement Core (50) Location -9/Garrison Parts ------- > --- POWER (1) -------- (None) > --- PROPULSION (2) --- (None) > --- UTILITY (4) ------ (None) > --- WEAPON (2) ------- (None) > --- INVENTORY (5) ---- Light Ion Engine Flight Unit Peak State ------------ > --- POWER ------------ Light Ion Engine > --- PROPULSION ------- Compact Wheel Compact Wheel > --- UTILITY ---------- Small Storage Unit Improved Terrain Scanner > --- WEAPON ----------- EM Pulse Gun Assault Rifle > --- INVENTORY -------- Light Ion Engine Aluminum Leg Assault Rifle [Rating: 9] Favorites ----------- Power Light Ion Engine Engine Light Ion Engine Propulsion Compact Wheel Leg Aluminum Leg Wheel Compact Wheel Hover Unit Hover Unit Flight Unit Flight Unit Utility Seismic Detector Device Seismic Detector Storage Small Storage Unit Weapon Assault Rifle Energy Gun EM Pulse Gun Ballistic Gun Assault Rifle Build | -11 -10 -9 -9 -9 ------- Run | Yrd Mat Mat Sto Gar Slots Evolved 2 | . . 2 . . Power . | . . . . . Propulsion . | . . . . . Utility 2 | . . 2 . . Weapon . | . . . . . Parts Attached 21 | 6 7 8 . . Power 3 | . 1 2 . . Engine 3 | . 1 2 . . Core . | . . . . . Reactor . | . . . . . Propulsion 9 | 2 4 3 . . Treads . | . . . . . Leg 1 | . . 1 . . Wheel 2 | 2 . . . . Hover 4 | . 4 . . . Flight 2 | . . 2 . . Utility 7 | 4 2 1 . . Device 5 | 4 1 . . . Storage 2 | . 1 1 . . Processor . | . . . . . Hackware . | . . . . . Protection . | . . . . . Artifact . | . . . . . Weapon 2 | . . 2 . . Energy Gun 1 | . . 1 . . Energy Cannon . | . . . . . Ballistic Gun 1 | . . 1 . . Ballistic Cannon . | . . . . . Launcher . | . . . . . Special Weapon . | . . . . . Impact Weapon . | . . . . . Slashing Weapon . | . . . . . Piercing Weapon . | . . . . . Special Melee Weapon . | . . . . . Unidentified Prototypes . | . . . . . Corrupted Parts 1 | . 1 . . . System Corruption 5 | . 5 . . . Parts Lost 13 | . 4 2 . 7 Power 1 | . . . . 1 Propulsion 5 | . 2 1 . 2 Utility 3 | . 1 . . 2 Weapon 4 | . 1 1 . 2 Highest Loss Streak 7 | . 3 2 . 7 To Critical Strikes . | . . . . . Average Backups 3 | 3 4 1 3 2 Power . | 1 . . 1 1 Propulsion 1 | 1 1 . 1 1 Utility 1 | . 2 1 1 . Weapon . | 1 . . . . Tool/Special . | . . . . . Unused Backups 14 | 9 2 1 . 2 Power 2 | 1 . . . 1 Propulsion 7 | 6 . . . 1 Utility . | . . . . . Weapon 5 | 2 2 1 . . Tool/Special . | . . . . . Average Slot Usage (%) 71 | . 72 73 88 69 Engine 12 | . 14 11 11 10 Wheel 1 | . 2 . . . Hover 6 | . 8 11 . . Flight 6 | . . 3 22 18 Device 20 | . 18 22 22 21 Storage 2 | . . 11 11 . Energy Gun 10 | . 13 3 11 8 Ballistic Gun 11 | . 14 8 11 10 Peak Build Rating 9 | 9 9 9 9 9 Average Rating 6 | 8 5 7 9 7 On Entrance 8 | 6 9 7 9 9 Avg Prop Armor Cover (%) . | . . . . . Naked Turns . | . . . . . Heaviest Build 13 | 13 9 10 8 8 Greatest Support 32 | 32 32 18 14 14 Greatest Overweight (x) 2 | . 2 . . . Average Overweight (x) . | . . . . . Largest Inventory Capacity 8 | 8 8 5 5 5 Average Capacity 5 | 6 5 5 5 5 Most Carried 6 | 6 5 5 3 3 Average Carried 3 | 3 4 1 3 2 Final Capacity 5 | 5 5 5 5 5 Final Carried 5 | 5 2 3 3 2 Class Distribution -------------------- 72% | Mutant 27% | Scavenger-Mutant Dominant Class ---------------- Mutant | -10/Materials Mutant | -9/Materials Mutant | -9/Storage Scavenger-Mutant | -9/Garrison Resources | -11 -10 -9 -9 -9 ----------- Run | Yrd Mat Mat Sto Gar Matter Collected 619 | 417 57 145 . . Remotely . | . . . . . Salvage Created 695 | 251 312 132 . . Parts 57 | 29 16 12 . . Haulers Intercepted 2 | . 2 . . . Recyclers Shooed 1 | . . 1 . . Parts Field Recycled . | . . . . . Retrieved Matter . | . . . . . Parts Self-Destructed . | . . . . . Prevented . | . . . . . Parts Restored . | . . . . . Kills | -11 -10 -9 -9 -9 ------- Run | Yrd Mat Mat Sto Gar Combat Hostiles Destroyed 10 | . 5 5 . . Guns 10 | . 5 5 . . Classes Destroyed 7 | 3 2 2 . . Worker 2 | 2 . . . . Tunneler 7 | 7 . . . . Hauler 2 | . 2 . . . Recycler 1 | 1 . . . . Operator 1 | . . 1 . . Swarmer 3 | . . 3 . . Grunt 7 | . 5 2 . . Best Kill Streak 3 | 3 3 3 . . Combat Bots Only 3 | . 3 3 . . Max Kills in Single Turn 2 | 2 1 2 . . Gunslinging 1 | . . 1 . . Exploded . | . . . . . Melee . | . . . . . Uniques/NPCs Destroyed . | . . . . . Combat | -11 -10 -9 -9 -9 -------- Run | Yrd Mat Mat Sto Gar Hostile Shots Fired 167 | . 38 53 . 76 Missed 50 | . 14 15 . 21 Hits 117 | . 24 38 . 55 Projectile 117 | . 24 38 . 55 Critical Strikes 1 | . . . . 1 Damage Taken 1137 | 18 284 319 . 516 Core 437 | . 37 106 . 294 Absorbed by Shields 72 | . . . . 72 Core Remaining (%) 92 | 100 85 . . . Volleys Fired 95 | 23 34 31 . 7 Largest 2 | 2 2 2 . 2 Hottest 60 | 60 60 60 . 60 Shots Fired 155 | 46 68 33 . 8 Gun 155 | 46 68 33 . 8 Cannon . | . . . . . Launcher . | . . . . . Special . | . . . . . Kinetic 89 | 23 34 25 . 7 Thermal 9 | . . 8 . 1 Explosive . | . . . . . Electromagnetic 57 | 23 34 . . . Robot Hit Streak 12 | 4 12 9 . 2 Robot Miss Streak 4 | 3 3 4 . 2 Penetration Max . | . . . . . Secondary Targets 1 | . . 1 . . Max Gunslinging Chain 1 | . . 1 . . Shots Hit Robots 95 | 24 45 23 . 3 Core Hits 35 | 10 15 9 . 1 Critical Kills . | . . . . . Critical Parts Destroyed . | . . . . . Critical Strikes 1 | 1 . . . . Corrupt 1 | 1 . . . . Melee Attacks . | . . . . . Impact . | . . . . . Slashing . | . . . . . Piercing . | . . . . . Sneak Attacks . | . . . . . Combat Hostiles . | . . . . . Follow-up Attacks . | . . . . . Damage Inflicted 1420 | 485 611 269 . 55 Guns 1165 | 296 583 264 . 22 Cannons . | . . . . . Explosions 213 | 189 24 . . . Melee . | . . . . . Ramming 42 | . 4 5 . 33 Kinetic 672 | 158 291 201 . 22 Thermal 276 | 189 24 63 . . Explosive . | . . . . . Electromagnetic 430 | 138 292 . . . Impact . | . . . . . Slashing . | . . . . . Piercing . | . . . . . Highest Corruption 5 | . 5 . . 1 Average Corruption 1 | . 5 . . 1 Corruption Purged . | . . . . . Corruption Blocked . | . . . . . Effects 1 | . . . . 1 Data Loss (minor) 1 | . . . . 1 Overload Shots . | . . . . . Overflow Damage 50 | 25 25 . . . Projectiles . | . . . . . Explosions 50 | 25 25 . . . Melee . | . . . . . Knockbacks . | . . . . . Impact . | . . . . . Kinetic . | . . . . . Secondary . | . . . . . Self-Inflicted Damage 76 | 18 41 2 . 15 Shots 2 | 1 1 . . . Rammed 10 | . 2 1 . 7 Targets Rammed 10 | . 2 1 . 7 Kicked . | . . . . . Crushed . | . . . . . Highest Temperature 196 | 32 196 18 . 20 Average Temperature 78 | 22 91 12 . 15 Received Heat Transfer 306 | . 108 30 . 168 Siege Activations . | . . . . . Martial Activations . | . . . . . Shielding Activations . | . . . . . Robots Disrupted . | . . . . . Combat Hostiles . | . . . . . Robots Corrupted . | . . . . . Combat Hostiles . | . . . . . Parts Fried . | . . . . . Impact Corruptions . | . . . . . Robots Melted . | . . . . . Combat Hostiles . | . . . . . Parts Melted . | . . . . . Heat Transferred 400 | 200 50 150 . . Parts Sabotaged . | . . . . . Parts Stolen . | . . . . . Parts Stripped . | . . . . . Power Chain Reactions 5 | 4 1 . . . Alert | -11 -10 -9 -9 -9 ------- Run | Yrd Mat Mat Sto Gar Maximum Alert Level . | . . . . . Low Security (%) 100 | 100 100 100 100 100 Level 1 . | . . . . . Level 2 . | . . . . . Level 3 . | . . . . . Level 4 . | . . . . . Level 5 . | . . . . . High Security . | . . . . . Max Security . | . . . . . Peak Influence 151 | 15 40 70 25 151 Initial 25 | . . . 25 16 Average 16 | 1 6 23 25 45 Influence Increases 486 | 50 121 130 . 185 Destroy 0b10 Robot/C 200 | . 100 100 . . Destroy 0b10 Robot/NC 65 | 50 10 5 . . Destroy Leader 14 | . 4 10 . . Anti-Garrison Action 50 | . . . . 50 Destroy Structure 7 | . 7 . . . Lose Combat Pursuer 150 | . . 15 . 135 Influence Decreases 355 | 50 120 71 35 79 Entered New Map 45 | . . 1 35 9 Time Decay 180 | 50 80 50 . . Lost Part 130 | . 40 20 . 70 Squads Dispatched 2 | . 1 1 . . Investigation 1 | . 1 . . . Extermination . | . . . . . Reinforcement 1 | . . 1 . . Assault . | . . . . . Garrison . | . . . . . Intercept . | . . . . . Searches Triggered . | . . . . . Construction Impeded . | . . . . . Haulers Reinforced . | . . . . . Active Scanning Responses . | . . . . . Cargo Convoy Interrupts . | . . . . . Stealth | -11 -10 -9 -9 -9 --------- Run | Yrd Mat Mat Sto Gar Distress Signals 2 | . 2 . . . Communications Jammed . | . . . . . Distress Signals . | . . . . . Times Spotted 38 | . 15 9 . 14 Peak Tracking Total 12 | . 6 4 . 12 Tactical Retreats 4 | . . 1 . 3 Traps | -11 -10 -9 -9 -9 ------- Run | Yrd Mat Mat Sto Gar Traps Triggered 9 | . . . . 9 Indirectly . | . . . . . Trap Hack Attempts . | . . . . . Triggered . | . . . . . Disarmed . | . . . . . Reprogrammed . | . . . . . Reused . | . . . . . Traps Extracted . | . . . . . Installed . | . . . . . Triggered . | . . . . . Machines | -11 -10 -9 -9 -9 ---------- Run | Yrd Mat Mat Sto Gar Machines Disabled . | . . . . . Max in Single Turn . | . . . . . Machines Repaired . | . . . . . Machines Dismantled . | . . . . . Machines Sabotaged . | . . . . . Overloaded Fab Kills . | . . . . . Hacking | -11 -10 -9 -9 -9 --------- Run | Yrd Mat Mat Sto Gar Machines Accessed 4 | . 2 . 1 1 Terminals 2 | . 1 . . 1 Fabricators . | . . . . . Repair Stations 1 | . 1 . . . Recycling Units . | . . . . . Scanalyzers . | . . . . . Garrison Access 1 | . . . 1 . Total Hacks 10 | . 5 . 1 4 Successful 2 | . 1 . 1 . Failed 8 | . 4 . . 4 Catastrophic 1 | . . . . 1 Database Lockouts . | . . . . . Manual . | . . . . . Terminals 7 | . 3 . . 4 Fabricators . | . . . . . Repair Stations 2 | . 2 . . . Recycling Units . | . . . . . Scanalyzers . | . . . . . Garrison Access 1 | . . . 1 . Terminal Hacks 1 | . 1 . . . Record 1 | . 1 . . . Fabricator Hacks . | . . . . . Repair Station Hacks . | . . . . . Recycling Unit Hacks . | . . . . . Scanalyzer . | . . . . . Garrison Access Hacks 1 | . . . 1 . Unlock Access 1 | . . . 1 . Unauthorized Hacks . | . . . . . Terminals . | . . . . . Fabricators . | . . . . . Repair Stations . | . . . . . Recycling Units . | . . . . . Scanalyzers . | . . . . . Garrison Access . | . . . . . Data Cores Recovered . | . . . . . Used . | . . . . . Hacking Detections 4 | . 2 . 1 1 Full Trace Events 3 | . 2 . . 1 Feedback Events 1 | . . . . 1 Corruption 1 | . . . . 1 Feedback Blocked . | . . . . . Robot Schematics Acquired . | . . . . . Robots Built . | . . . . . Authchips . | . . . . . Time . | . . . . . Total Robot Build Rating . | . . . . . Part Schematics Acquired . | . . . . . Parts Built . | . . . . . Authchips . | . . . . . Time . | . . . . . Total Part Build Rating . | . . . . . Part Studies Acquired . | . . . . . Parts Repaired . | . . . . . Time . | . . . . . Parts Recycled . | . . . . . Recycled Matter . | . . . . . Retrieved Matter . | . . . . . Retrieved Components . | . . . . . Parts Scanalyzed . | . . . . . Part Schematics Acquired . | . . . . . Parts Damaged . | . . . . . Bothacking | -11 -10 -9 -9 -9 ------------ Run | Yrd Mat Mat Sto Gar Used RIF Installer 1 | . . . . 1 Robots Hacked . | . . . . . Non-combat . | . . . . . Combat . | . . . . . Robot Hacks Applied . | . . . . . Relay Couplers Released . | . . . . . Fabnet Peak Effective % . | . . . . . Robots Rewired . | . . . . . Allies Hacked . | . . . . . Hacks Repelled . | . . . . . Allies | -11 -10 -9 -9 -9 -------- Run | Yrd Mat Mat Sto Gar Total Allies . | . . . . . Largest Group . | . . . . . Highest-Rated Group . | . . . . . Highest-Rated Ally . | . . . . . Total Orders . | . . . . . Ally Attacks . | . . . . . Total Damage . | . . . . . Kills . | . . . . . Allies Corrupted . | . . . . . Allies Melted . | . . . . . Intel | -11 -10 -9 -9 -9 ------- Run | Yrd Mat Mat Sto Gar Active Infowar (turns) 964 | 219 387 129 2 227 Terrain 328 | 219 109 . . . Seismic 892 | 149 385 129 2 227 Robot Analysis Total . | . . . . . Derelict Logs Recovered . | . . . . . Drone Launches . | . . . . . Drone Recoveries . | . . . . . Exploration | -11 -10 -9 -9 -9 ------------- Run | Yrd Mat Mat Sto Gar Turns Passed 1054 | 295 387 129 2 241 Spaces Moved 793 | 100 241 85 5 362 Core 167 | . 117 . . 50 Treads . | . . . . . Legs 8 | . . 8 . . Wheels 130 | 100 30 . . . Hover 141 | . 94 47 . . Flight 347 | . . 30 5 312 Fastest Speed 37 | 100 56 37 37 37 Average Speed 69 | 100 107 56 37 38 Slowest Speed 150 | 100 150 120 37 50 Overloaded Moves . | . . . . . Propulsion Burnouts . | . . . . . Robots Hopped 1 | . . 1 . . Potential Cave-ins . | . . . . . Cave-ins Triggered . | . . . . . Exploration Rate (%) 20 | 4 39 7 3 47 Regions Visited 4 Branch Regions 1 Pre-discovered Areas . | . . . . . Known Exits Taken 1 | . . . 1 . Unknown Exits Taken 3 | 1 1 1 . . Scrap Searched . | . . . . . Spaces Dug . | . . . . . Terrain Destroyed 22 | 16 6 . . . Melee . | . . . . . Projectile . | . . . . . AOE 22 | 16 6 . . . Terrain Rammed . | . . . . . Walls Destroyed . | . . . . . Machines Disabled . | . . . . . Actions | -11 -10 -9 -9 -9 --------- Run | Yrd Mat Mat Sto Gar Total 1140 | 249 300 130 5 456 Wait 120 | 113 7 . . . Move 786 | 99 240 82 5 360 Hop 1 | . . 1 . . Pick Up 8 | 2 3 3 . . Fast Attach 9 | 2 3 4 . . Attach 5 | . 3 2 . . Detach . | . . . . . Swap 8 | 4 2 2 . . Drop 18 | 6 6 4 . 2 Fire 95 | 23 34 31 . 7 Melee . | . . . . . Ram 10 | . 2 1 . 7 Kick . | . . . . . Crush . | . . . . . Escape Stasis 80 | . . . . 80 Rewire . | . . . . . Trap . | . . . . . Miscellaneous . | . . . . . Route ------- -11/Scrapyard -10/Materials (discovered 2 exits: [*Mat] / [*Min]) -9/Materials -9/Storage -9/Garrison (discovered 1 exit: [*Rec]) History --------- Turn | Location | Event 6 | -11/Scrapyard | Discovered new exit (range 3) 296 | -11/Scrapyard | Entered Materials 316 | -10/Materials | Build established: Mutant 465 | -10/Materials | Lost 3 parts (2n1u) 597 | -10/Materials | Discovered new exit (range 12) 680 | -10/Materials | Discovered new exit (range 7) 683 | -10/Materials | Entered another Materials area 683 | -9/Materials | Evolved 2 slots: Utility x2 803 | -9/Materials | Discovered new exit (range 13) 812 | -9/Materials | Entered Storage 814 | -9/Storage | Identified exit to Garrison 814 | -9/Storage | Entered Garrison 896 | -9/Garrison | Triggered checkpoint 897 | -9/Garrison | Discovered new exit (range 14) 903 | -9/Garrison | Attempted to access garrison exit controls, blocked by remote lockdown 982 | -9/Garrison | Triggered checkpoint 982 | -9/Garrison | Triggered checkpoint 1032 | -9/Garrison | Triggered checkpoint 1032 | -9/Garrison | Core integrity fell below 50% 1035 | -9/Garrison | Installed Relay Interface Framework 1051 | -9/Garrison | Core integrity fell below 20% 1055 | -9/Garrison | Destroyed by G-34 Mercenary with Small Laser Last Messages --------------- 01034_ An alarm sounds. Initiating installation procedure... 01035_ Relay Interface Framework installed. [Achievement: Join The Dark Side] 01035_ Lgt. Ion Engine destroyed. 01040_ ALERT: Dispatching investigation squad to Recycling. 01041_ Seismic Detector destroyed. 01046_ Lgt. Assault Rifle destroyed. 01048_ Slammed into S-10 Pest. 01048_ Weight Redist. System broken. 01048_ Destabilizing: Short circuit. 01049_ Slammed into S-10 Pest. 01050_ Slammed into Y-45 Defender. 01052_ Critical hit (Burn: +37). 01052_ Slammed into Y-45 Defender. 01055_ Slammed into G-34 Mercenary. 01055_ Broken Weight Redist. System destroyed. 01055_ System corrupted by crushing effect (+5). [Achievement: Deductive Reasoning] Map ----- +----------------------------------------------------+ | ??????????????????????????????????????????# | | ??????????????????????????????????????????## | | ???????????????????????????????????????????# | | ???????????????????????????????????????????# | | ???????????????????????????????????????????# | | ???????????????????????????????????????????# ^ | | ???????????????????????????????????????????# | | ???????????????????????????????????????????# | | ????????????????????????????################ | | ????????????????????????????# | | ????????????????????????????# | | ????????????????????????????# ############### | | ????????????????????????????# #?????????????? | | ????????????????????????????# #?????????????? | | ????????????????????????????# #?????????????? | | ????????????????????????????# #?????????????? | | ????????????????????????????# #?????????????? | | ???????????????????########## #?????????????? | | ???????????????????# #?????????????? | | ???????????????????# #?????????????? | | ???????????????????# ###+######?????????????? | | ???????????????????# #?# #??????????????????? | | ???????????????????# #?# #??????????????????? | | ???????????????????# #?# #??????????????????? | | ???????????????????# g+? #??????????????????? | | ???????????????????# @#?###??????????????????? | | ??????????########## ####### ##???????????? | | ??????????# #???????????? | | ??????????# Y% #???????????? | | ??????????# ########s## #######???????????? | | ????????????????????#s#? #?????????????????? | | ????????????????????#Y#??###?????????????????? | | ???????????????????##s##?????????????????????? | | ???????????????????# #?????????????????????? | | ???????????????????#" "#?????????????????????? | | ???????????????????#" "#?????????????????????? | | ???????????????????#" "#?????????????????????? | | ???????????????????#"""#?????????????????????? | | ???????????????????#####?????????????????????? | | ?????????????????????????????????????????????? | | ?????????????????????????????????????????????? | | ?????????????????????????????????????????????? | | ?????????????????????????????????????????????? | | ?????????????????????????????????????????????? | | | | | | | | | | | | | +----------------------------------------------------+ Best States ------------- Heat Dissipation 28 Energy Generation 10 Energy Capacity 250 Matter Stores 315 Matter Capacity 400 Sight Range 16 Terrain Scan Range 16 Terrain Scan Density 10 Additional Mass Support 6 Evasion (%) 62 Item Schematics ----------------- None Robot Schematics ------------------ None Fabricated ------------ Nothing Repaired ---------- Nothing Studied --------- None Alien Tech Used ----------------- None Achievements -------------- A Problem For Future Me Deductive Reasoning Join The Dark Side Challenges ------------ None Game ------ Seed LayeredSuperchargedMask Manual? 0 Play Time 00:15:25 Cumulative 110.5 hours Start 2025.10.22 @ 19:18:29 End 2025.10.22 @ 19:30:58 Sessions 1 Manual Loads 0 Difficulty Rogue Special Mode None Game No. 190 Rogue 144 Adventurer 45 Explorer 1 Win Type - Total 0 Types 0/0/0/0/0/0/0/0/0/0 Lore% 21 Gallery% 42 Achievement% 22 Wizard Run 0 Options --------- Layout 2 ASCII 0 Keyboard 0 Movement Mouse Keybinds 0 Fullscreen 1 Font 32/SmallcapsGlow Map View 50x44 Zoom Use 0% Tactical HUD 1 Map Filters NONE Filters LOW_CONTRAST(13,24,33)|BRIGHTNESS(90)|SATURATION(87) Steam 1 RUN: 03e91f93-e856-4663-bc21-c8d1d1ab9e76